fUST/lending_fUST_20250829
["ID","MTS","AMOUNT","RATE_DAILY","PERIOD"]
[381903536,1756397463104,-480.0,0.0002,2]
[381903537,1756397463114,-480.0,0.0002,2]
[381903538,1756397463123,-480.0,0.0002,2]
[381903539,1756397463134,-678.18,0.0002,2]
[381903540,1756397463148,-480.0,0.0002,2]
[381903541,1756397463158,-480.0,0.0002,2]
[381903542,1756397463168,-480.0,0.0002,2]
[381903543,1756397463179,-695.46,0.0002,2]
[381903544,1756397463189,-480.0,0.0002,2]
[381903545,1756397463199,-480.0,0.0002,2]
[381903546,1756397463209,-480.0,0.0002,2]
[381903547,1756397463219,-480.0,0.0002,2]
[381903548,1756397463231,-480.0,0.0002,2]
[381903549,1756397463241,-525.5,0.0002,2]
[381903550,1756397463374,-480.0,0.0002,2]
[381903551,1756397463387,-1089.64,0.0002,2]
[381903552,1756397463398,-480.0,0.0002,2]
[381903553,1756397463410,-575.55,0.0002,2]
[381903554,1756397463421,-480.0,0.0002,2]
[381903555,1756397463432,-480.0,0.0002,2]
[381903556,1756397463444,-511.87,0.0002,2]
[381903557,1756397463455,-671.61,0.0002,2]
[381903558,1756397463466,-963.04,0.0002,2]
[381903559,1756397463478,-480.0,0.0002,2]
[381903560,1756397463489,-480.0,0.0002,2]
[381903561,1756397463499,-1022.04,0.0002,2]
[381903562,1756397463509,-1196.29,0.0002,2]
[381903563,1756397463520,-846.9,0.0002,2]
[381903564,1756397463530,-480.0,0.0002,2]
[381903565,1756397463547,-434.58168498,0.0002,2]
[381903566,1756397463558,-1413.76,0.0002,2]
[381903567,1756397463568,-480.0,0.0002,2]
[381903568,1756397463579,-480.0,0.0002,2]
[381903569,1756397463590,-480.0,0.0002,2]
[381903570,1756397463600,-480.0,0.0002,2]
[381903571,1756397463611,-1712.29,0.0002,2]
[381903572,1756397463622,-480.0,0.0002,2]
[381903573,1756397463633,-480.0,0.0002,2]
[381903574,1756397463648,-1644.88,0.0002,2]
[381903575,1756397463661,-480.0,0.0002,2]
[381903576,1756397463671,-480.0,0.0002,2]
[381903577,1756397463682,-480.0,0.0002,2]
[381903578,1756397463692,-1229.1,0.0002,2]
[381903579,1756397463704,-480.0,0.0002,2]
[381903580,1756397463715,-1331.75,0.0002,2]
[381903581,1756397463725,-480.0,0.0002,2]
[381903582,1756397463736,-480.0,0.0002,2]
[381903583,1756397463747,-480.0,0.0002,2]
[381903584,1756397463757,-624.88,0.0002,2]
[381903585,1756397463767,-480.0,0.0002,2]
[381903586,1756397463777,-4000.0,0.0002,4]
[381903587,1756397463790,-480.0,0.0002,2]
[381903588,1756397463800,-480.0,0.0002,2]
[381903589,1756397463809,-480.0,0.0002,2]
[381903590,1756397463819,-480.0,0.0002,2]
[381903591,1756397463828,-480.0,0.0002,2]
[381903592,1756397463839,-480.0,0.0002,2]
[381903593,1756397463849,-480.0,0.0002,2]
[381903594,1756397463858,-480.0,0.0002,2]
[381903595,1756397463868,-480.0,0.0002,2]
[381903596,1756397463878,-480.0,0.0002,2]
[381903597,1756397463888,-480.0,0.0002,2]
[381903598,1756397463898,-480.0,0.0002,2]
[381903599,1756397463907,-480.0,0.0002,2]
[381903600,1756397463917,-480.0,0.0002,2]
[381903601,1756397463927,-480.0,0.0002,2]
[381903602,1756397463937,-695.57,0.0002,2]
[381903603,1756397463947,-480.0,0.0002,2]
[381903604,1756397463956,-480.0,0.0002,2]
[381903605,1756397463966,-500.0,0.00020021,2]
[381903606,1756397463976,-506.19980553,0.00020021,2]
[381903607,1756397463985,-500.0,0.00020021,2]
[381903608,1756397463995,-1000.0,0.00020021,2]
[381903609,1756397464004,-453.8193436,0.00020034,4]
[381903610,1756397464014,-761.29385796,0.00020071,2]
[381903611,1756397464023,-151.529525,0.00020092,2]
[381903612,1756397464035,-232.722334,0.00020187,2]
[381903613,1756397464045,-151.529525,0.00020192,3]
[381903614,1756397464054,-151.0,0.000202,4]
[381903615,1756397464064,-453.8193436,0.00020223,4]
[381903616,1756397464073,-587.0,0.00020228,2]
[381903617,1756397464083,-281.832113,0.00020229,2]
[381903618,1756397464094,-201.65837251,0.00020229,2]
[381903619,1756397464104,-761.0,0.00020229,2]
[381903620,1756397464114,-480.0,0.00020273,2]
[381903621,1756397464124,-480.0,0.00020273,2]
[381903622,1756397464134,-532.06,0.00020273,2]
[381903623,1756397464145,-480.0,0.00020273,2]
[381903624,1756397464158,-480.0,0.00020273,2]
[381903625,1756397464168,-480.0,0.00020273,2]
[381903626,1756397464178,-480.0,0.00020273,2]
[381903627,1756397464189,-480.0,0.00020273,2]
[381903628,1756397464199,-480.0,0.00020273,2]
[381903629,1756397464209,-480.0,0.00020273,2]
[381903630,1756397464219,-480.0,0.00020273,2]
[381903631,1756397464230,-480.0,0.00020273,2]
[381903632,1756397464240,-480.0,0.00020273,2]
[381903633,1756397464250,-480.0,0.00020273,2]
[381903634,1756397464260,-480.0,0.00020273,2]
[381903635,1756397464270,-196.41684406,0.00020273,2]
[381903636,1756397464280,-480.0,0.00020273,2]
[381903637,1756397464292,-480.0,0.00020273,2]
[381903638,1756397464301,-350.90251669,0.00020273,2]
[381903639,1756397464311,-596.66,0.00020273,2]
[381903640,1756397464322,-480.0,0.00020273,2]
[381903641,1756397464331,-480.0,0.00020273,2]
[381903642,1756397464339,-480.0,0.00020273,2]
[381903643,1756397464349,-480.0,0.00020273,2]
[381903644,1756397464359,-480.0,0.00020273,2]
[381903645,1756397464369,-480.0,0.00020273,2]
[381903646,1756397464379,-480.0,0.00020273,2]
[381903647,1756397464390,-480.0,0.00020273,2]
[381903648,1756397464400,-619.98859574,0.00020273,2]
[381903649,1756397464410,-585.05315856,0.00020273,2]
[381903650,1756397464419,-480.0,0.00020273,2]
[381903651,1756397464429,-480.0,0.00020273,2]
[381903652,1756397464439,-480.0,0.00020273,2]
[381903653,1756397464448,-480.0,0.00020273,2]
[381903654,1756397464458,-543.54210536,0.00020273,2]
[381903655,1756397464467,-480.0,0.00020273,2]
[381903656,1756397464478,-480.0,0.00020273,2]
[381903657,1756397464488,-480.0,0.00020273,2]
[381903658,1756397464498,-480.0,0.00020273,2]
[381903659,1756397464508,-480.0,0.00020273,2]
[381903660,1756397464518,-480.0,0.00020273,2]
[381903661,1756397464528,-480.0,0.00020273,2]
[381903662,1756397464540,-480.0,0.00020273,2]
[381903663,1756397464550,-480.0,0.00020273,2]
[381903664,1756397464559,-692.08,0.00020273,2]
[381903665,1756397464569,-884.53,0.00020273,2]
[381903666,1756397464578,-480.0,0.00020273,2]
[381903667,1756397464588,-480.0,0.00020273,2]
[381903668,1756397464598,-480.0,0.00020273,2]
[381903669,1756397464608,-480.0,0.00020273,2]
[381903670,1756397464617,-480.0,0.00020273,2]
[381903671,1756397464627,-480.0,0.00020273,2]
[381903672,1756397464636,-480.0,0.00020273,2]
[381903673,1756397464646,-480.0,0.00020273,2]
[381903674,1756397464656,-422.49169316,0.00020273,2]
[381903675,1756397464666,-480.0,0.00020273,2]
[381903676,1756397464675,-480.0,0.00020273,2]
[381903677,1756397464685,-429.77597595,0.00020273,2]
[381903678,1756397464695,-480.0,0.00020273,2]
[381903679,1756397464705,-480.0,0.00020273,2]
[381903680,1756397464715,-480.0,0.00020273,2]
[381903681,1756397464724,-480.0,0.00020273,2]
[381903682,1756397464735,-533.52,0.00020273,2]
[381903683,1756397464744,-480.0,0.00020273,2]
[381903684,1756397464754,-480.0,0.00020273,2]
[381903685,1756397464763,-480.0,0.00020273,2]
[381903686,1756397464773,-480.0,0.00020273,2]
[381903687,1756397464783,-480.0,0.00020273,2]
[381903688,1756397464794,-480.0,0.00020273,2]
[381903689,1756397464803,-480.0,0.00020273,2]
[381903690,1756397464814,-480.0,0.00020273,2]
[381903691,1756397464824,-480.0,0.00020273,2]
[381903692,1756397464834,-480.0,0.00020273,2]
[381903693,1756397464844,-480.0,0.00020273,2]
[381903694,1756397464853,-480.0,0.00020273,2]
[381903695,1756397464863,-480.0,0.00020273,2]
[381903696,1756397464873,-479.08647868,0.00020273,2]
[381903697,1756397464884,-480.0,0.00020273,2]
[381903698,1756397464894,-480.0,0.00020273,2]
[381903699,1756397464904,-593.05,0.00020273,2]
[381903700,1756397464915,-480.0,0.00020273,2]
[381903701,1756397464924,-480.0,0.00020273,2]
[381903702,1756397464934,-480.0,0.00020273,2]
[381903703,1756397464943,-480.0,0.00020273,2]
[381903704,1756397464954,-480.0,0.00020273,2]
[381903705,1756397464963,-480.0,0.00020273,2]
[381903706,1756397464972,-480.0,0.00020273,2]
[381903707,1756397464982,-480.0,0.00020273,2]
[381903708,1756397464992,-480.0,0.00020273,2]
[381903709,1756397465001,-480.0,0.00020273,2]
[381903710,1756397465011,-480.0,0.00020273,2]
[381903711,1756397465020,-480.0,0.00020273,2]
[381903712,1756397465030,-480.0,0.00020273,2]
[381903713,1756397465040,-480.0,0.00020273,2]
[381903714,1756397465050,-480.0,0.00020273,2]
[381903715,1756397465059,-480.0,0.00020273,2]
[381903716,1756397465068,-480.0,0.00020273,2]
[381903717,1756397465078,-480.0,0.00020273,2]
[381903718,1756397465087,-160.19296672,0.00020273,2]
[381903719,1756397465097,-480.0,0.00020273,2]
[381903720,1756397465106,-480.0,0.00020273,2]
[381903721,1756397465116,-480.0,0.00020273,2]
[381903722,1756397465125,-480.0,0.00020273,2]
[381903723,1756397465135,-480.0,0.00020273,2]
[381903724,1756397465146,-480.0,0.00020273,2]
[381903725,1756397465157,-480.0,0.00020273,2]
[381903726,1756397465167,-480.0,0.00020273,2]
[381903727,1756397465177,-480.0,0.00020273,2]
[381903728,1756397465189,-480.0,0.00020273,2]
[381903729,1756397465198,-480.0,0.00020273,2]
[381903730,1756397465208,-506.97379189,0.00020273,2]
[381903731,1756397465218,-480.0,0.00020273,2]
[381903732,1756397465229,-480.0,0.00020273,2]
[381903733,1756397465239,-480.0,0.00020273,2]
[381903734,1756397465249,-480.0,0.00020273,2]
[381903735,1756397465259,-480.0,0.00020273,2]
[381903736,1756397465269,-480.0,0.00020273,2]
[381903737,1756397465279,-480.0,0.00020273,2]
[381903738,1756397465289,-480.0,0.00020273,2]
[381903739,1756397465299,-480.0,0.00020273,2]
[381903740,1756397465319,-714.06,0.00020273,2]
[381903741,1756397465331,-579.72,0.00020273,2]
[381903742,1756397465341,-480.0,0.00020273,2]
[381903743,1756397465353,-329.39860101,0.00020273,2]
[381903744,1756397465364,-480.0,0.00020273,2]
[381903745,1756397465376,-480.0,0.00020273,2]
[381903746,1756397465385,-728.34,0.00020273,2]
[381903747,1756397465395,-480.0,0.00020273,2]
[381903748,1756397465405,-480.0,0.00020273,2]
[381903749,1756397465416,-480.0,0.00020273,2]
[381903750,1756397465425,-2169.0,0.00020273,2]
[381903751,1756397465435,-1178.09,0.00020273,2]
[381903752,1756397465445,-480.0,0.00020273,2]
[381903753,1756397465455,-480.0,0.00020273,2]
[381903754,1756397465464,-480.0,0.00020273,2]
[381903755,1756397465474,-649.8,0.00020273,2]
[381903756,1756397465483,-2414.97,0.00020273,2]
[381903757,1756397465493,-480.0,0.00020273,2]
[381903758,1756397465503,-480.0,0.00020273,2]
[381903759,1756397465513,-480.0,0.00020273,2]
[381903760,1756397465523,-602.06924754,0.00020273,2]
[381903761,1756397465533,-480.0,0.00020273,2]
[381903762,1756397465543,-480.0,0.00020273,2]
[381903763,1756397465553,-1607.15,0.00020273,2]
[381903764,1756397465562,-480.0,0.00020273,2]
[381903765,1756397465571,-480.0,0.00020273,2]
[381903766,1756397465580,-480.0,0.00020273,2]
[381903767,1756397465589,-480.0,0.00020273,2]
[381903768,1756397465599,-1601.43,0.00020273,2]
[381903769,1756397465608,-480.0,0.00020273,2]
[381903770,1756397465618,-932.0,0.00020273,2]
[381903771,1756397465628,-480.0,0.00020273,2]
[381903772,1756397465638,-480.0,0.00020273,2]
[381903773,1756397465647,-2011.15,0.00020273,2]
[381903774,1756397465657,-480.0,0.00020273,2]
[381903775,1756397465667,-480.0,0.00020273,2]
[381903776,1756397465677,-3709.43,0.00020273,2]
[381903777,1756397465688,-342.67567441,0.00020273,2]
[381903778,1756397465698,-480.0,0.00020273,2]
[381903779,1756397465708,-480.0,0.00020273,2]
[381903780,1756397465718,-480.0,0.00020273,2]
[381903781,1756397465728,-1247.18,0.00020273,2]
[381903782,1756397465738,-480.0,0.00020273,2]
[381903783,1756397465748,-480.0,0.00020273,2]
[381903784,1756397465758,-480.0,0.00020273,2]
[381903785,1756397465875,-480.0,0.00020273,2]
[381903786,1756397465896,-480.0,0.00020273,2]
[381903787,1756397465906,-1841.6,0.00020273,2]
[381903788,1756397465916,-480.0,0.00020273,2]
[381903789,1756397465926,-480.0,0.00020273,2]
[381903790,1756397465935,-519.15,0.00020273,2]
[381903791,1756397465944,-480.0,0.00020273,2]
[381903792,1756397465954,-2674.43,0.00020273,2]
[381903793,1756397465964,-771.42,0.00020273,2]
[381903794,1756397465974,-480.0,0.00020273,2]
[381903795,1756397465984,-480.0,0.00020273,2]
[381903796,1756397465993,-480.0,0.00020273,2]
[381903797,1756397466003,-480.0,0.00020273,2]
[381903798,1756397466013,-480.0,0.00020273,2]
[381903799,1756397466023,-480.0,0.00020273,2]
[381903800,1756397466033,-480.0,0.00020273,2]
[381903801,1756397466044,-168.75659731,0.00020273,2]
[381903802,1756397466055,-467.78320608,0.00020273,2]
[381903803,1756397466064,-480.0,0.00020273,2]
[381903804,1756397466075,-678.18,0.00020273,2]
[381903805,1756397466085,-480.0,0.00020273,2]
[381903806,1756397466095,-480.0,0.00020273,2]
[381903807,1756397466104,-480.0,0.00020273,2]
[381903808,1756397466114,-695.46,0.00020273,2]
[381903809,1756397466124,-480.0,0.00020273,2]
[381903810,1756397466134,-480.0,0.00020273,2]
[381903811,1756397466147,-480.0,0.00020273,2]
[381903812,1756397466157,-480.0,0.00020273,2]
[381903813,1756397466167,-480.0,0.00020273,2]
[381903814,1756397466176,-274.13897531,0.00020273,2]
[381903815,1756397466186,-1089.64,0.00020273,2]
[381903816,1756397466196,-575.55,0.00020273,2]
[381903817,1756397466207,-480.0,0.00020273,2]
[381903818,1756397466218,-480.0,0.00020273,2]
[381903819,1756397466227,-480.0,0.00020273,2]
[381903820,1756397466236,-511.87,0.00020273,2]
[381903821,1756397466246,-671.61,0.00020273,2]
[381903822,1756397466256,-480.0,0.00020273,2]
[381903823,1756397466266,-963.04,0.00020273,2]
[381903824,1756397466276,-480.0,0.00020273,2]
[381903825,1756397466286,-1022.04,0.00020273,2]
[381903826,1756397466296,-1196.29,0.00020273,2]
[381903827,1756397466306,-846.9,0.00020273,2]
[381903828,1756397466316,-480.0,0.00020273,2]
[381903829,1756397466328,-1413.76,0.00020273,2]
[381903830,1756397466338,-480.0,0.00020273,2]
[381903831,1756397466349,-480.0,0.00020273,2]
[381903832,1756397466359,-480.0,0.00020273,2]
[381903833,1756397466368,-480.0,0.00020273,2]
[381903834,1756397466378,-1712.29,0.00020273,2]
[381903835,1756397466387,-480.0,0.00020273,2]
[381903836,1756397466397,-480.0,0.00020273,2]
[381903837,1756397466407,-1644.88,0.00020273,2]
[381903838,1756397466417,-480.0,0.00020273,2]
[381903839,1756397466427,-480.0,0.00020273,2]
[381903840,1756397466437,-1229.1,0.00020273,2]
[381903841,1756397466447,-1331.75,0.00020273,2]
[381903842,1756397466457,-480.0,0.00020273,2]
[381903843,1756397466466,-480.0,0.00020273,2]
[381903844,1756397466475,-624.88,0.00020273,2]
[381903845,1756397466484,-480.0,0.00020273,2]
[381903846,1756397466492,-480.0,0.00020273,2]
[381903847,1756397466502,-480.0,0.00020273,2]
[381903848,1756397466511,-480.0,0.00020273,2]
[381903849,1756397466520,-480.0,0.00020273,2]
[381903850,1756397466530,-480.0,0.00020273,2]
[381903851,1756397466540,-566.52841343,0.00020273,2]
[381903852,1756397466550,-480.0,0.00020273,2]
[381903853,1756397466559,-480.0,0.00020273,2]
[381903854,1756397466569,-480.0,0.00020273,2]
[381903855,1756397466579,-480.0,0.00020273,2]
[381903856,1756397466588,-480.0,0.00020273,2]
[381903857,1756397466598,-309.54657155,0.00020273,2]
[381903858,1756397466608,-480.0,0.00020273,2]
[381903859,1756397466618,-480.0,0.00020273,2]
[381903860,1756397466627,-695.57,0.00020273,2]
[381903861,1756397466636,-480.0,0.00020273,2]
[381903862,1756397466646,-250.0,0.00020275,2]
[381903863,1756397466655,-150.0,0.00020275,2]
[381903864,1756397466665,-150.0,0.00020275,2]
[381903865,1756397466674,-150.0,0.00020275,2]
[381903866,1756397466683,-150.0,0.00020275,2]
[381903867,1756397466693,-150.0,0.00020275,2]
[381903868,1756397466703,-150.0,0.00020275,2]
[381903869,1756397466712,-175.468,0.00020275,2]
[381903870,1756397466722,-990.815,0.00020275,2]
[381903871,1756397466731,-638.0,0.00020275,2]
[381903872,1756397466740,-2157.0,0.00020275,2]
[381903873,1756397466750,-151.0,0.000203,4]
[381903874,1756397466760,-1000.0,0.000203,2]
[381903875,1756397466770,-151.529525,0.00020314,7]
[381903876,1756397466779,-674.5,0.0002036,3]
[381903877,1756397466790,-337.24,0.0002036,3]
[381903878,1756397466799,-151.0,0.000204,3]
[381903879,1756397466809,-168.0,0.0002041,2]
[381903880,1756397466818,-453.8193436,0.00020412,4]
[381903881,1756397466828,-358.0,0.00020429,2]
[381903882,1756397466838,-12822.35884629,0.00020447,2]
[381903883,1756397466847,-5000.0,0.00020484,2]
[381903884,1756397466857,-46154.0,0.000205,2]
[381903885,1756397466867,-151.529525,0.000205,10]
[381903886,1756397466876,-761.0,0.00020503,2]
[381903887,1756397466885,-1000.0,0.00020521,2]
[381903888,1756397466895,-1000.0,0.00020521,2]
[381903889,1756397466905,-1000.0,0.00020521,2]
[381903890,1756397466914,-1000.0,0.00020521,2]
[381903891,1756397466923,-644.10472253,0.00020521,2]
[381903892,1756397466933,-260.0,0.00020541,2]
[381903893,1756397466944,-277.62312003,0.00020547,2]
[381903894,1756397466954,-410.64942714,0.00020547,2]
[381903895,1756397466963,-1640.95511087,0.00020547,2]
[381903896,1756397466973,-480.0,0.00020547,2]
[381903897,1756397466982,-606.05,0.00020547,2]
[381903898,1756397466992,-365.31550978,0.00020547,2]
[381903899,1756397467001,-480.0,0.00020547,2]
[381903900,1756397467012,-480.0,0.00020547,2]
[381903901,1756397467021,-480.0,0.00020547,2]
[381903902,1756397467036,-321.62365653,0.00020547,2]
[381903903,1756397467051,-543.3667173,0.00020547,2]
[381903904,1756397467060,-499.56,0.00020547,2]
[381903905,1756397467070,-480.0,0.00020547,2]
[381903906,1756397467080,-480.0,0.00020547,2]
[381903907,1756397467090,-480.0,0.00020547,2]
[381903908,1756397467100,-480.0,0.00020547,2]
[381903909,1756397467109,-616.69066057,0.00020547,2]
[381903910,1756397467119,-480.0,0.00020547,2]
[381903911,1756397467130,-519.8912424,0.00020547,2]
[381903912,1756397467145,-596.66,0.00020547,2]
[381903913,1756397467157,-480.0,0.00020547,2]
[381903914,1756397467167,-480.0,0.00020547,2]
[381903915,1756397467179,-480.0,0.00020547,2]
[381903916,1756397467188,-480.0,0.00020547,2]
[381903917,1756397467198,-480.0,0.00020547,2]
[381903918,1756397467208,-480.0,0.00020547,2]
[381903919,1756397467221,-480.0,0.00020547,2]
[381903920,1756397467231,-370.88356942,0.00020547,2]
[381903921,1756397467241,-480.0,0.00020547,2]
[381903922,1756397467251,-480.0,0.00020547,2]
[381903923,1756397467261,-480.0,0.00020547,2]
[381903924,1756397467271,-480.0,0.00020547,2]
[381903925,1756397467281,-480.0,0.00020547,2]
[381903926,1756397467291,-480.0,0.00020547,2]
[381903927,1756397467301,-424.59656544,0.00020547,2]
[381903928,1756397467311,-480.0,0.00020547,2]
[381903929,1756397467321,-480.0,0.00020547,2]
[381903930,1756397467331,-480.0,0.00020547,2]
[381903931,1756397467341,-480.0,0.00020547,2]
[381903932,1756397467350,-480.0,0.00020547,2]
[381903933,1756397467360,-480.0,0.00020547,2]
[381903934,1756397467370,-692.08,0.00020547,2]
[381903935,1756397467379,-884.53,0.00020547,2]
[381903936,1756397467389,-480.0,0.00020547,2]
[381903937,1756397467399,-480.0,0.00020547,2]
[381903938,1756397467408,-480.0,0.00020547,2]
[381903939,1756397467418,-480.0,0.00020547,2]
[381903940,1756397467428,-480.0,0.00020547,2]
[381903941,1756397467438,-481.36,0.00020547,2]
[381903942,1756397467451,-480.0,0.00020547,2]
[381903943,1756397467460,-434.27782844,0.00020547,2]
[381903944,1756397467471,-480.0,0.00020547,2]
[381903945,1756397467481,-480.0,0.00020547,2]
[381903946,1756397467492,-491.17020033,0.00020547,2]
[381903947,1756397467502,-480.0,0.00020547,2]
[381903948,1756397467512,-456.29058473,0.00020547,2]
[381903949,1756397467522,-533.52,0.00020547,2]
[381903950,1756397467532,-480.0,0.00020547,2]
[381903951,1756397467543,-480.0,0.00020547,2]
[381903952,1756397467552,-480.0,0.00020547,2]
[381903953,1756397467562,-480.0,0.00020547,2]
[381903954,1756397467571,-526.37752988,0.00020547,2]
[381903955,1756397467581,-404.46065883,0.00020547,2]
[381903956,1756397467591,-480.0,0.00020547,2]
[381903957,1756397467601,-360.34831367,0.00020547,2]
[381903958,1756397467612,-480.0,0.00020547,2]
[381903959,1756397467623,-504.23,0.00020547,2]
[381903960,1756397467633,-480.0,0.00020547,2]
[381903961,1756397467643,-480.0,0.00020547,2]
[381903962,1756397467653,-480.0,0.00020547,2]
[381903963,1756397467663,-593.05,0.00020547,2]
[381903964,1756397467672,-480.0,0.00020547,2]
[381903965,1756397467681,-480.0,0.00020547,2]
[381903966,1756397467691,-480.0,0.00020547,2]
[381903967,1756397467701,-480.0,0.00020547,2]
[381903968,1756397467710,-480.0,0.00020547,2]
[381903969,1756397467721,-371.63527356,0.00020547,2]
[381903970,1756397467731,-480.0,0.00020547,2]
[381903971,1756397467742,-390.10263995,0.00020547,2]
[381903972,1756397467752,-480.0,0.00020547,2]
[381903973,1756397467762,-480.0,0.00020547,2]
[381903974,1756397467771,-480.0,0.00020547,2]
[381903975,1756397467781,-480.0,0.00020547,2]
[381903976,1756397467791,-480.0,0.00020547,2]
[381903977,1756397467800,-409.19852128,0.00020547,2]
[381903978,1756397467810,-480.0,0.00020547,2]
[381903979,1756397467820,-480.0,0.00020547,2]
[381903980,1756397467829,-480.0,0.00020547,2]
[381903981,1756397467839,-480.0,0.00020547,2]
[381903982,1756397467848,-480.0,0.00020547,2]
[381903983,1756397467857,-480.0,0.00020547,2]
[381903984,1756397467868,-480.0,0.00020547,2]
[381903985,1756397467878,-452.98406637,0.00020547,2]
[381903986,1756397467887,-480.0,0.00020547,2]
[381903987,1756397467896,-480.0,0.00020547,2]
[381903988,1756397467905,-480.0,0.00020547,2]
[381903989,1756397467915,-480.0,0.00020547,2]
[381903990,1756397467925,-480.0,0.00020547,2]
[381903991,1756397467935,-480.0,0.00020547,2]
[381903992,1756397467944,-480.0,0.00020547,2]
[381903993,1756397467954,-480.0,0.00020547,2]
[381903994,1756397467963,-480.0,0.00020547,2]
[381903995,1756397467973,-480.0,0.00020547,2]
[381903996,1756397467984,-343.41210199,0.00020547,2]
[381903997,1756397467993,-480.0,0.00020547,2]
[381903998,1756397468003,-714.06,0.00020547,2]
[381903999,1756397468014,-579.72,0.00020547,2]
[381904000,1756397468025,-480.0,0.00020547,2]
[381904001,1756397468037,-480.0,0.00020547,2]
[381904002,1756397468189,-480.0,0.00020547,2]
[381904003,1756397468201,-728.34,0.00020547,2]
[381904004,1756397468211,-480.0,0.00020547,2]
[381904005,1756397468221,-480.0,0.00020547,2]
[381904006,1756397468231,-938.63,0.00020547,2]
[381904007,1756397468242,-2169.0,0.00020547,2]
[381904008,1756397468252,-1178.09,0.00020547,2]
[381904009,1756397468262,-480.0,0.00020547,2]
[381904010,1756397468272,-480.0,0.00020547,2]
[381904011,1756397468281,-480.0,0.00020547,2]
[381904012,1756397468293,-649.8,0.00020547,2]
[381904013,1756397468303,-2414.97,0.00020547,2]
[381904014,1756397468313,-480.0,0.00020547,2]
[381904015,1756397468323,-480.0,0.00020547,2]
[381904016,1756397468334,-450.08194787,0.00020547,2]
[381904017,1756397468344,-480.0,0.00020547,2]
[381904018,1756397468355,-480.0,0.00020547,2]
[381904019,1756397468365,-1607.15,0.00020547,2]
[381904020,1756397468375,-480.0,0.00020547,2]
[381904021,1756397468385,-480.0,0.00020547,2]
[381904022,1756397468395,-1601.43,0.00020547,2]
[381904023,1756397468404,-932.0,0.00020547,2]
[381904024,1756397468414,-480.0,0.00020547,2]
[381904025,1756397468424,-480.0,0.00020547,2]
[381904026,1756397468434,-2011.15,0.00020547,2]
[381904027,1756397468443,-480.0,0.00020547,2]
[381904028,1756397468453,-480.0,0.00020547,2]
[381904029,1756397468463,-3709.43,0.00020547,2]
[381904030,1756397468473,-611.67699423,0.00020547,2]
[381904031,1756397468482,-480.0,0.00020547,2]
[381904032,1756397468492,-480.0,0.00020547,2]
[381904033,1756397468501,-1247.18,0.00020547,2]
[381904034,1756397468511,-480.0,0.00020547,2]
[381904035,1756397468521,-480.0,0.00020547,2]